fUSD/lending_fUSD_20240204
["ID","MTS","AMOUNT","RATE_DAILY","PERIOD"]
[313283881,1707081040953,-1287.23,0.00022999,2]
[313283882,1707081041631,-574.03358918,0.00022999,2]
[313283883,1707081041686,-11664.72744904,0.00022999,2]
[313283884,1707081041699,-299.51257832,0.00022999,2]
[313283885,1707081041712,-2163.86672022,0.00022999,2]
[313283886,1707081041724,-547.52749393,0.00022999,2]
[313283891,1707081045034,-23924.13369243,0.00022999,2]
[313283892,1707081045043,-183111.84477897,0.00023,2]
[313283893,1707081045052,-220104.16962978,0.00023,2]
[313283894,1707081045090,-4615.91742913,0.00023,2]
[313283895,1707081045103,-1096.99831557,0.00023,2]
[313283896,1707081045116,-5076.06007542,0.00023,2]
[313283897,1707081045127,-3369.25808278,0.00023,2]
[313283898,1707081045139,-4150.0,0.00023,2]
[313283899,1707081045200,-315.33517421,0.00023,2]
[313283916,1707081046496,-2153.2,0.00023,2]
[313283917,1707081046511,-2299.29999998,0.00023,2]
[313283918,1707081046552,-1404.25927612,0.00023,2]
[313283931,1707081047331,191.83293913,0.00022402,2]
[313283932,1707081060769,304.74826577,0.00021,2]
[313283933,1707081061094,1005.86579131,0.00020698,2]
[313283934,1707081063634,1233.63754547,0.00022308,2]
[313283935,1707081066295,155.0,0.00020162,2]
[313283936,1707081067011,356.64347884,0.00022402,2]
[313283937,1707081069545,2977.4533,0.00022402,2]
[313283938,1707081073185,3197.13386433,0.00022076,2]
[313283939,1707081082816,155.0,0.00020696,2]
[313283940,1707081084288,156.61149724,0.00020162,2]
[313283941,1707081092922,199.60880723,0.00022402,2]
[313283942,1707081093844,1333.70804756,0.00020162,2]
[313283943,1707081140003,301.856441,0.00022416,2]
[313283944,1707081141634,1025.21682242,0.00022282,2]
[313283945,1707081192057,570.01,0.00020601,2]
[313283946,1707081223435,200.0,0.00022222,2]
[313283947,1707081261037,314.96,0.00022124,2]
[313283948,1707081261264,314.96,0.00022184,2]
[313283949,1707081261478,314.96,0.00022245,2]
[313283950,1707081261864,314.96,0.00022306,2]
[313283951,1707081262080,314.96,0.00022366,2]
[313283952,1707081262493,314.96,0.00022427,2]
[313283953,1707081262563,314.96,0.00022488,2]
[313283954,1707081284425,166.06,0.00021812,2]
[313283955,1707081289342,497.47,0.00021834,2]
[313283956,1707081293577,202.09,0.00021812,2]
[313283957,1707081313930,150.0,0.00021999,2]
[313283958,1707081319759,260.75269255,0.00022222,2]
[313283959,1707081370299,167.85,0.00021711,2]
[313283960,1707081379960,250.0,0.00021918,2]
[313283961,1707081387970,2862.1853,0.00022428,2]
[313283962,1707081412301,185.76,0.00021724,2]
[313283963,1707081439666,5831.0014,0.00022428,2]
[313283964,1707081443185,2066.3926,0.00022423,2]
[313283965,1707081451491,176.92,0.00021899,2]
[313283966,1707081452757,176.92,0.00022447,2]
[313283967,1707081468770,422.62278552,0.00022424,2]
[313283968,1707081469336,610.57725012,0.00021724,2]
[313283969,1707081469746,250.0,0.0002169,2]
[313283970,1707081470965,1626.68,0.00021673,2]
[313283971,1707081481496,300.0,0.00022501,2]
[313283972,1707081482220,150.0,0.00022501,2]
[313283973,1707081482281,150.0,0.00022501,2]
[313283974,1707081487787,5436.0,0.00022501,2]
[313283975,1707081487976,525.66094304,0.00022501,2]
[313283976,1707081490178,362.96860533,0.00022501,2]
[313283977,1707081490254,1818.3791318,0.00022501,2]
[313283978,1707081491815,155.0,0.00022501,2]
[313283979,1707081492596,503.13862142,0.00022501,2]
[313283980,1707081492727,315.36950451,0.00022501,2]
[313283981,1707081495399,245.77620875,0.00022501,2]
[313283982,1707081499329,408.75444518,0.00022501,2]
[313283983,1707081501585,2000.0,0.00021729,2]
[313283984,1707081501973,524.9997489,0.00022501,2]
[313283985,1707081502485,518.64502866,0.00022501,2]
[313283986,1707081504175,358.94697523,0.00022501,2]
[313283987,1707081504559,545.94481101,0.00022424,2]
[313283988,1707081506587,503.13862142,0.00022501,2]
[313283989,1707081506732,160.71194092,0.00022501,2]
[313283990,1707081507103,7811.13114191,0.00022501,2]
[313283991,1707081507827,155.0,0.00022501,2]
[313283992,1707081508609,1044.99592506,0.00022501,2]
[313283993,1707081508917,10533.26673953,0.00022501,2]
[313283994,1707081510218,1144.76116669,0.00022501,2]
[313283995,1707081511397,3040.50888199,0.00022501,2]
[313283996,1707081512415,283.83163888,0.00022501,2]
[313283997,1707081514469,1054.0465193,0.00022501,2]
[313283998,1707081515327,408.75444518,0.00022501,2]
[313283999,1707081515401,245.55667011,0.00022501,2]
[313284000,1707081517536,1207.94157059,0.00022501,2]
[313284001,1707081520693,868.97128709,0.00022424,2]
[313284002,1707081522614,1044.99592506,0.00022501,2]
[313284003,1707081523098,7811.13114191,0.00022501,2]
[313284004,1707081523940,33476.12920149,0.00022501,2]
[313284005,1707081524505,1858.86108655,0.00022501,2]
[313284006,1707081524932,10533.26673953,0.00022501,2]
[313284007,1707081526407,283.6100876,0.00022501,2]
[313284008,1707081526542,155.0,0.00022501,2]
[313284009,1707081527823,274.34099471,0.00022501,2]
[313284010,1707081528585,503.13862142,0.00022501,2]
[313284011,1707081530020,159.37624852,0.00022501,2]
[313284012,1707081534501,15291.42,0.0002179,2]
[313284013,1707081539243,23900.0,0.00021791,2]
[313284014,1707081552854,1956.37,0.0002175,2]
[313284015,1707081565663,2911.79656407,0.00022501,2]
[313284016,1707081565800,2790.43322248,0.00022501,2]
[313284017,1707081574308,1318.01,0.000225,2]
[313284018,1707081590428,692.19851741,0.000225,2]
[313284019,1707081591911,3040.50888199,0.00022501,2]
[313284020,1707081595306,216.36056394,0.00022501,2]
[313284021,1707081597504,518.64502866,0.00022501,2]
[313284022,1707081600043,761.59097852,0.00022501,2]
[313284023,1707081603271,10095.1198,0.00022423,2]
[313284024,1707081614045,281.74852368,0.00022424,2]
[313284025,1707081614873,545.944811,0.00022424,2]
[313284026,1707081619486,3588.5631,0.00022423,2]
[313284027,1707081630307,591.69,0.00019825,2]
[313284028,1707081630528,591.69,0.00022089,2]
[313284029,1707081637163,176.94784805,0.00022408,2]
[313284030,1707081638171,2911.79656407,0.00022501,2]
[313284031,1707081638303,2790.43322248,0.00022501,2]
[313284032,1707081640211,5233.15937147,0.00022501,2]
[313284033,1707081646798,7200.3091,0.00022423,2]
[313284034,1707081648086,1207.94157059,0.00022501,2]
[313284035,1707081649400,281.9797924,0.00022284,2]
[313284036,1707081658412,1302.01412096,0.00021868,2]
[313284037,1707081658466,952.10937077,0.00022284,2]
[313284038,1707081671398,285.84680506,0.00022284,2]
[313284039,1707081675774,216.36056394,0.00022501,2]
[313284040,1707081680028,518.64502866,0.00022501,2]
[313284041,1707081682660,167.0,0.00022374,2]
[313284042,1707081689854,247.73314621,0.00022282,2]
[313284043,1707081703946,1252.56544431,0.00022499,2]
[313284044,1707081706046,1046.95638333,0.00022424,2]
[313284045,1707081706728,5233.15937147,0.00022501,2]
[313284046,1707081711949,247.42374992,0.00022282,2]
[313284047,1707081712438,360.55,0.00021991,2]
[313284048,1707081712639,360.55,0.00022051,2]
[313284049,1707081712864,360.55,0.00022112,2]
[313284050,1707081713064,360.55,0.00022172,2]
[313284051,1707081713268,360.55,0.00022232,2]
[313284052,1707081713478,360.55,0.00022293,2]
[313284053,1707081713717,360.55,0.00022353,2]
[313284054,1707081713912,360.55,0.00022413,2]
[313284055,1707081714128,360.55,0.00022473,2]
[313284056,1707081719633,602.02,0.00021736,2]
[313284057,1707081724200,35896.93,0.00022423,2]
[313284058,1707081725208,545.944811,0.00022424,2]
[313284059,1707081739297,206.631,0.00022423,2]
[313284060,1707081740116,290.98,0.00021762,2]
[313284061,1707081742307,173.63850868,0.00022424,2]
[313284062,1707081750532,1047.62,0.00021936,2]
[313284063,1707081753883,6734.2382,0.00022423,2]
[313284064,1707081759409,187.83234912,0.00022424,2]
[313284065,1707081760429,1000.0,0.00022423,2]
[313284066,1707081765984,150.92565863,0.00022401,2]
[313284067,1707081791229,5233.15937147,0.00022501,2]
[313284068,1707081796310,737.54,0.00021918,2]
[313284069,1707081817968,2500.0,0.00022423,2]
[313284070,1707081826523,260.05,0.00021731,2]
[313284071,1707081836124,3666.8342,0.00022422,2]
[313284072,1707081861731,5233.15937147,0.00022501,2]
[313284073,1707081869323,153.65839265,0.00022407,2]
[313284074,1707081884686,738.8623,0.00022422,2]
[313284075,1707081886085,6734.2382,0.00022422,2]
[313284076,1707081896514,916.08683544,0.00022424,2]
[313284077,1707081904710,187.83234911,0.00022424,2]
[313284078,1707081937287,2000.0,0.00021715,2]
[313284079,1707081986774,802173.7196,0.00022423,2]
[313284080,1707082006247,215.86628773,0.00022501,2]
[313284081,1707082010538,4287.85276481,0.00022501,2]
[313284082,1707082012450,249.67966478,0.00022501,2]
[313284083,1707082012994,4714.92629925,0.00022501,2]
[313284084,1707082014814,221.22226679,0.00022501,2]
[313284085,1707082015716,4536.13812355,0.00022501,2]
[313284086,1707082018173,6734.2382,0.00022423,2]
[313284087,1707082028041,1628.7,0.00021708,2]
[313284088,1707082040029,187.83234911,0.00022424,2]
[313284089,1707082054464,582.19,0.00019791,2]
[313284090,1707082054674,582.19,0.00022054,2]
[313284091,1707082056724,197.65742886,0.00022501,2]
[313284092,1707082059858,5534.8428,0.00022423,2]
[313284093,1707082076937,243.34831327,0.00022501,2]
[313284094,1707082077138,700.37677378,0.00022501,2]
[313284095,1707082082152,1260.58031446,0.00022501,2]
[313284096,1707082083312,975.53996315,0.00022473,2]
[313284097,1707082084289,207.4091,0.00022423,2]
[313284098,1707082085065,4287.85276481,0.00022501,2]
[313284099,1707082087518,4714.92629925,0.00022501,2]
[313284100,1707082089155,282.40905992,0.00021899,2]
[313284101,1707082090721,15007.89,0.00021707,2]
[313284102,1707082091342,221.22226679,0.00022501,2]
[313284103,1707082112414,801.57598101,0.00022424,2]
[313284104,1707082129024,4257.3913,0.00022423,2]
[313284105,1707082132890,834.3564,0.00022423,2]
[313284106,1707082133030,173.63850867,0.00022424,2]
[313284107,1707082140250,167.0,0.0002234,2]
[313284108,1707082144037,13110.8185,0.00022423,2]
[313284109,1707082152892,250.0,0.00021689,2]
[313284110,1707082161014,7483.0,0.00022076,2]
[313284111,1707082163860,221.22226679,0.00022501,2]
[313284112,1707082172420,251.7,0.00021862,2]
[313284113,1707082172644,251.7,0.00021922,2]
[313284114,1707082173044,251.7,0.00021982,2]
[313284115,1707082173265,251.7,0.00022042,2]
[313284116,1707082173466,251.7,0.00022102,2]
[313284117,1707082173699,251.7,0.00022162,2]
[313284118,1707082173915,251.7,0.00022222,2]
[313284119,1707082174306,251.7,0.00022282,2]
[313284120,1707082174506,251.7,0.00022342,2]
[313284121,1707082174725,251.7,0.00022402,2]
[313284122,1707082174971,251.7,0.00022462,2]
[313284123,1707082199854,90456.905,0.00022423,2]
[313284124,1707082206702,518.38,0.00021713,2]
[313284125,1707082213888,307.57,0.00021713,2]
[313284136,1707082231417,-4167.35823304,0.00022502,2]
[313284137,1707082231426,-699.82908852,0.00022505,2]
[313284138,1707082231435,-197.50005284,0.00022506,2]
[313284139,1707082231445,-575.64301681,0.00022506,2]
[313284140,1707082231454,-300.0,0.00022506,2]
[313284141,1707082231464,-150.0,0.00022506,2]
[313284142,1707082231473,-251.32016081,0.00022507,2]
[313284143,1707082231482,-191.49894103,0.00022507,2]
[313284144,1707082231491,-215.69128333,0.00022507,2]
[313284145,1707082231500,-249.48972746,0.00022507,2]
[313284146,1707082231509,-216.60253728,0.00022507,2]
[313284147,1707082231521,-667.61891395,0.00022507,2]
[313284148,1707082231536,-1386.72675487,0.00022507,2]
[313284149,1707082231547,-435.04752656,0.00022507,2]
[313284150,1707082231559,-1224.28502304,0.00022507,2]
[313284151,1707082231570,-602.32043333,0.00022507,2]
[313284152,1707082231579,-161.05192257,0.00022507,2]
[313284153,1707082231590,-4548.41354646,0.00022507,2]
[313284154,1707082231600,-214.6061358,0.00022507,2]
[313284155,1707082231613,-220.87490175,0.00022507,2]
[313284156,1707082231622,-155.0,0.00022509,2]
[313284157,1707082231631,-760.95795852,0.00022509,2]
[313284158,1707082231640,-155.0,0.00022509,2]
[313284159,1707082231650,-2908.36956333,0.00022509,2]
[313284160,1707082231659,-2786.97742156,0.00022509,2]
[313284161,1707082231668,-311.10938782,0.00022509,2]
[313284162,1707082231678,-1206.42979202,0.00022509,2]
[313284163,1707082231687,-679.21934992,0.00022509,2]
[313284164,1707082231696,-769.01361155,0.00022509,2]
[313284165,1707082231706,-302.08860795,0.00022509,2]
[313284167,1707082231715,-525.44699598,0.00022509,2]
[313284170,1707082231724,-243.13958265,0.00022509,2]
[313284172,1707082231733,-1259.59869882,0.00022509,2]
[313284174,1707082231743,-4283.10178641,0.00022509,2]
[313284175,1707082231752,-3036.91406314,0.0002251,2]
[313284176,1707082231761,-2325.91196662,0.00022511,2]
[313284177,1707082231770,-171.88977379,0.00022511,2]
[313284178,1707082231779,-2070.82387328,0.00022511,2]
[313284179,1707082231788,-3338.37650623,0.00022511,2]
[313284180,1707082231797,-1053.15734204,0.00022511,2]
[313284181,1707082231806,-7795.88191191,0.00022511,2]
[313284182,1707082231815,-1853.4131156,0.00022511,2]
[313284183,1707082231824,-155.38394594,0.00022511,2]
[313284184,1707082231834,-863.00549733,0.00022511,2]
[313284185,1707082231843,-157.85925374,0.00022511,2]
[313284186,1707082231852,-6688.27736203,0.00022511,2]
[313284187,1707082231861,-505.6922628,0.00022511,2]
[313284188,1707082231870,-22435.78271163,0.00022512,2]
[313284189,1707082231879,-8994.26289475,0.00022513,2]
[313284190,1707082231896,-4052.37287619,0.00022513,2]
[313284191,1707082231905,-413.22910588,0.00022513,2]
[313284192,1707082231914,-500.0,0.00022513,2]
[313284193,1707082231923,-193.70434859,0.00022513,2]
[313284194,1707082231932,-155.0,0.00022522,2]
[313284195,1707082231942,-174.62906648,0.00022522,2]
[313284196,1707082231954,-155.0,0.00022522,2]
[313284197,1707082231964,-489.54660479,0.00022522,2]
[313284198,1707082231973,-155.25873498,0.00022522,2]
[313284199,1707082231982,-503.69301813,0.00022522,2]
[313284200,1707082231991,-155.0,0.00022522,2]
[313284201,1707082232000,-155.0,0.00022522,2]
[313284202,1707082232009,-2999.9,0.00022522,2]
[313284203,1707082232019,-251.7,0.00022522,2]
[313284204,1707082232028,-4257.98615526,0.00022523,2]
[313284205,1707082232037,-154974.94692917,0.00022523,2]
[313284206,1707082232049,-929.82241406,0.00022523,2]
[313284207,1707082232060,-341.48500725,0.00022523,2]
[313284208,1707082232072,-737.05569696,0.00022523,2]
[313284209,1707082232086,-3409.97307988,0.00022523,2]
[313284210,1707082232097,-10917.10514038,0.00022523,2]
[313284211,1707082232113,-437.73689209,0.00022523,2]
[313284212,1707082232125,-3009.39434132,0.00022523,2]
[313284213,1707082232137,-4296.9348,0.00022523,2]
[313284214,1707082232149,-517.85068696,0.00022523,2]
[313284215,1707082232167,-603.01113768,0.00022523,2]
[313284216,1707082232179,-770.82851823,0.00022523,2]
[313284217,1707082232190,-564.66263687,0.00022523,2]
[313284218,1707082232202,-521.07491688,0.00022523,2]
[313284219,1707082232214,-1357.89469464,0.00022523,2]
[313284220,1707082232225,-401.911,0.00022523,2]
[313284221,1707082232236,-496.10168245,0.00022523,2]
[313284222,1707082234803,414876.0976,0.00022413,2]
[313284234,1707082237456,-1425.94447234,0.00022523,2]
[313284236,1707082237468,-1708.77529307,0.00022523,2]
[313284238,1707082237479,-1129.55719286,0.00022523,2]
[313284240,1707082237490,-3988.05,0.00022523,2]
[313284242,1707082237500,-398.66629,0.00022523,2]
[313284243,1707082237511,-29665.05132166,0.00022523,2]
[313284425,1707082240999,-451177.97230103,0.00022523,2]
[313284427,1707082241008,-260.99505921,0.00022524,2]
[313284429,1707082241017,-203.31012739,0.00022524,2]
[313284431,1707082241026,-155.0,0.00022524,2]
[313284433,1707082241035,-233.93753511,0.00022524,2]
[313284435,1707082241044,-505.57440672,0.00022524,2]
[313284437,1707082241053,-372.35831287,0.00022524,2]
[313284439,1707082241062,-943.43596546,0.00022524,2]
[313284441,1707082241071,-3154.41404609,0.00022524,2]
[313284443,1707082241083,-155.0,0.00022524,2]
[313284445,1707082241092,-1064.2090234,0.00022524,2]
[313284447,1707082241101,-544.57626637,0.00022524,2]
[313284448,1707082241110,-155.0,0.00022524,2]
[313284449,1707082241119,-5460.96831257,0.00022524,2]
[313284450,1707082241128,-43133.53807385,0.00022524,2]
[313284451,1707082241137,-218.65413859,0.00022524,2]
[313284452,1707082241147,-1405.71928031,0.00022524,2]
[313284453,1707082241157,-155.0,0.00022526,2]
[313284454,1707082241167,-162.73570966,0.00022526,2]
[313284455,1707082241176,-229.03230944,0.00022526,2]
[313284456,1707082241185,-172.43584277,0.00022526,2]
[313284457,1707082241194,-16816.49524538,0.00022526,2]
[313284458,1707082241204,-19057.21734432,0.00022526,2]
[313284459,1707082241213,-365.24008671,0.00022526,2]
[313284460,1707082241222,-401.81085213,0.00022526,2]
[313284461,1707082241232,-266.3113819,0.00022526,2]
[313284462,1707082241241,-197.37498757,0.00022526,2]
[313284463,1707082241250,-499.99,0.00022526,2]
[313284464,1707082241260,-757.41,0.00022526,2]
[313284465,1707082241269,-23803.83849069,0.00022528,2]
[313284466,1707082241279,-289.8795039,0.00022528,2]
[313284467,1707082241288,-251.7,0.00022582,2]
[313284468,1707082241297,-251.7,0.00022642,2]
[313284469,1707082241307,-251.7,0.00022702,2]
[313284470,1707082241316,-251.7,0.00022762,2]
[313284471,1707082241326,-495.94273594,0.00022766,2]
[313284472,1707082241335,-715.0,0.00022768,2]
[313284473,1707082241344,-167.85,0.00022797,2]
[313284474,1707082241353,-834.1911,0.00022799,2]
[313284475,1707082241363,-3162.35348731,0.000228,2]
[313284476,1707082241372,-216.35570619,0.000228,2]
[313284477,1707082241381,-800.0,0.00022815,2]
[313284478,1707082241390,-200.0,0.00022816,2]
[313284479,1707082241399,-800.0,0.00022816,2]
[313284480,1707082241409,-800.0,0.00022816,2]
[313284481,1707082241417,-200.0,0.00022816,2]
[313284482,1707082241426,-260.05,0.00022817,2]
[313284483,1707082241435,-251.7,0.00022822,2]
[313284484,1707082241444,-153.6583925,0.00022877,2]
[313284485,1707082241454,-251.7,0.00022882,2]
[313284486,1707082241462,-3239.0425,0.00022899,2]
[313284487,1707082241472,-500.0,0.00022899,2]
[313284488,1707082241481,-887.17373565,0.00022899,2]
[313284489,1707082241496,-12848.19536435,0.00022899,2]
[313284490,1707082241506,-100000.0,0.00022899,2]
[313284491,1707082241515,-153.60381204,0.000229,2]
[313284492,1707082241524,-251.7,0.00022942,2]
[313284493,1707082241533,-941.78794294,0.00022972,2]
[313284494,1707082241542,-393.64627864,0.00022997,4]
[313284495,1707082241551,-342.68960484,0.00022997,2]
[313284496,1707082241560,-155.0,0.00022998,2]
[313284497,1707082241570,-533.90351792,0.00022998,2]
[313284498,1707082241579,-150.01,0.00022999,2]
[313284499,1707082241588,-1498.31172352,0.00022999,2]
[313284500,1707082241598,-155.0,0.00022999,2]
[313284501,1707082241607,-250781.82423407,0.00023,2]
[313284502,1707082241648,-10892.05763812,0.00023,2]
[313284503,1707082241657,-714.19,0.00023,2]
[313284504,1707082241666,-150.0,0.00023,2]
[313284505,1707082241675,-251.7,0.00023002,2]
[313284506,1707082241685,-3083.66523063,0.00023012,2]
[313284507,1707082241694,-975.53996316,0.00023137,2]
[313284508,1707082241703,-1473.04723596,0.00023154,2]
[313284509,1707082241713,-153.6583925,0.00023348,2]
[313284510,1707082241722,-1628.7,0.00023352,2]
[313284511,1707082241731,-153.6583925,0.00023818,2]
[313284512,1707082241741,-651.84,0.00023836,2]
[313284513,1707082241751,-167.85,0.00023882,2]
[313284514,1707082241760,-260.05,0.00023904,2]
[313284515,1707082241769,-153.6583925,0.00024288,2]
[313284516,1707082241779,-582.19,0.00024318,2]
[313284517,1707082241788,-2790.38,0.00024384,2]
[313284518,1707082241797,-518.38,0.00024427,2]
[313284519,1707082241807,-420.0,0.00024444,2]
[313284520,1707082241817,-602.02,0.00024453,2]
[313284521,1707082241826,-2000.0,0.000245,2]
[313284522,1707082241835,-152.4549424,0.00024547,2]
[313284523,1707082241844,-800.0,0.0002463,2]
[313284524,1707082241853,-1094.15,0.00024658,2]
[313284525,1707082241862,-156.31,0.00024658,2]
[313284526,1707082241871,-156.31,0.00024658,2]
[313284527,1707082241880,-948.08,0.00024658,2]
[313284528,1707082241889,-1972.46,0.00024658,3]
[313284529,1707082241900,-250.0,0.00024658,2]
[313284530,1707082241909,-651.84,0.00024679,2]
[313284531,1707082241918,-150.0,0.00024757,2]
[313284532,1707082241927,-153.6583925,0.00024759,2]
[313284533,1707082241936,-625.23,0.00024761,2]
[313284534,1707082241946,-3162.35348726,0.00024768,2]
[313284535,1707082241955,-1094.15,0.00024787,2]
[313284536,1707082241964,-156.31,0.00024787,2]
[313284537,1707082241974,-156.31,0.00024787,2]
[313284538,1707082241983,-948.08,0.00024787,2]
[313284539,1707082241993,-152.4549424,0.00024841,2]
[313284540,1707082242002,-625.23,0.00024891,2]
[313284541,1707082242012,-1094.15,0.00024917,2]
[313284542,1707082242020,-156.31,0.00024917,2]
[313284543,1707082242030,-156.31,0.00024917,2]
[313284544,1707082242039,-948.08,0.00024917,2]
[313284545,1707082242049,-167.85,0.00024968,2]
[313284546,1707082242058,-167.0,0.00024985,2]
[313284547,1707082242067,-260.05,0.00024991,2]
[313284548,1707082242076,-1628.7,0.00024996,2]
[313284549,1707082242087,-936.86679501,0.00025,2]
[313284550,1707082242097,-202.77097058,0.00025,2]
[313284551,1707082242106,-167.98637528,0.00025,2]
[313284552,1707082242115,-159.24196843,0.00025,2]
[313284553,1707082242125,-1254.00428759,0.00025,2]
[313284554,1707082242135,-1905.81852245,0.00025,2]
[313284555,1707082242145,-200.83671057,0.00025,2]
[313284556,1707082242154,-426.69524324,0.00025,2]
[313284557,1707082242164,-1588.97256459,0.00025,2]
[313284558,1707082242174,-304.48967897,0.00025,2]
[313284559,1707082242183,-550.0,0.00025,3]
[313284560,1707082242192,-1500.0,0.00025,2]
[313284561,1707082242201,-625.23,0.00025021,2]
[313284562,1707082242211,-1094.15,0.00025047,2]
[313284563,1707082242220,-156.31,0.00025047,2]
[313284564,1707082242231,-156.31,0.00025047,2]
[313284565,1707082242240,-948.08,0.00025047,2]
[313284566,1707082242250,-154.53150843,0.0002509,2]
[313284567,1707082242260,-1329.05098452,0.000251,2]
[313284568,1707082242269,-625.23,0.00025152,2]
[313284569,1707082242278,-1094.15,0.00025177,2]
[313284570,1707082242287,-156.31,0.00025177,2]
[313284571,1707082242297,-156.31,0.00025177,2]
[313284572,1707082242306,-948.08,0.00025177,2]
[313284573,1707082242317,-153.6583925,0.00025229,2]
[313284575,1707082242327,-625.23,0.00025282,2]
[313284577,1707082242336,-1094.15,0.00025306,2]
[313284580,1707082242345,-156.31,0.00025306,2]
[313284582,1707082242354,-156.31,0.00025306,2]
[313284584,1707082242363,-948.08,0.00025306,2]
[313284586,1707082242372,-693.0,0.000254,2]
[313284588,1707082242381,-1000.0,0.000254,2]
[313284590,1707082242391,-625.23,0.00025412,2]
[313284592,1707082242401,-1094.15,0.00025436,2]
[313284594,1707082242410,-156.31,0.00025436,2]
[313284595,1707082242420,-156.31,0.00025436,2]
[313284596,1707082242429,-948.08,0.00025436,2]
[313284597,1707082242438,-500.0,0.00025481,2]
[313284598,1707082242448,-274.94661593,0.0002549,2]
[313284599,1707082242457,-651.84,0.00025522,2]
[313284600,1707082242466,-625.23,0.00025543,2]
[313284601,1707082242476,-1094.15,0.00025566,2]
[313284602,1707082242485,-156.31,0.00025566,2]
[313284603,1707082242494,-156.31,0.00025566,2]
[313284604,1707082242503,-948.08,0.00025566,2]
[313284605,1707082242512,-801.57598095,0.00025571,2]
[313284606,1707082242522,-164.11617636,0.000256,2]
[313284607,1707082242531,-152.4549424,0.00025646,2]
[313284608,1707082242541,-625.23,0.00025673,2]
[313284609,1707082242550,-1094.15,0.00025696,2]
[313284610,1707082242559,-156.31,0.00025696,2]
[313284611,1707082242568,-156.31,0.00025696,2]
[313284612,1707082242578,-948.08,0.00025696,2]
[313284613,1707082242587,-153.6583925,0.000257,2]
[313284614,1707082242597,-625.23,0.00025803,2]
[313284615,1707082242606,-3161.0,0.00025824,2]
[313284616,1707082242615,-1094.15,0.00025826,2]
[313284617,1707082242624,-156.31,0.00025826,2]
[313284618,1707082242633,-156.31,0.00025826,2]
[313284619,1707082242642,-948.08,0.00025826,2]
[313284620,1707082242652,-625.23,0.00025934,2]
[313284621,1707082242662,-1094.15,0.00025955,2]
[313284622,1707082242671,-156.31,0.00025955,2]
[313284623,1707082242680,-156.31,0.00025955,2]
[313284624,1707082242690,-948.08,0.00025955,2]
[313284625,1707082242699,-201.74842816,0.00026,2]
[313284626,1707082242709,-167.85,0.00026053,2]
[313284627,1707082242718,-625.23,0.00026064,2]
[313284628,1707082242727,-260.05,0.00026077,2]
[313284629,1707082242736,-150.0,0.00026079,2]
[313284630,1707082242746,-1094.15,0.00026085,2]
[313284631,1707082242755,-156.31,0.00026085,2]
[313284632,1707082242764,-156.31,0.00026085,2]
[313284633,1707082242773,-948.08,0.00026085,2]
[313284636,1707082242783,-153.6583925,0.0002617,2]
[313284638,1707082242791,-625.23,0.00026194,2]
[313284640,1707082242801,-1094.15,0.00026215,2]
[313284642,1707082242810,-156.31,0.00026215,2]
[313284644,1707082242820,-156.31,0.00026215,2]
[313284647,1707082242830,-948.08,0.00026215,2]
[313284650,1707082242839,-155.25821832,0.00026259,2]
[313284651,1707082242849,-151.09684366,0.00026259,2]
[313284652,1707082242858,-625.23,0.00026325,2]
[313284653,1707082242867,-1094.15,0.00026345,2]
[313284654,1707082242876,-156.31,0.00026345,2]
[313284655,1707082243023,-156.31,0.00026345,2]